[Event "WYCC 2018 O18"]
[Site "Halkidiki"]
[Date "2018.10.23"]
[Round "5"]
[White "Petersson, Baldur Teodor"]
[Black "Bronstein, Or"]
[Result "0-1"]
[ECO "B25"]
[WhiteElo "2195"]
[BlackElo "2385"]
[Annotator "NA"]
[PlyCount "88"]
[EventDate "2018.10.20"]
[EventType "swiss"]
[EventCountry "GRE"]
[SourceTitle "playchess.com"]
[Source "ChessBase"]
[SourceQuality "1"]
[TimeControl "40/5400+30:1800+30"]

1. e4 {[%emt 0:00:00]} c5 {[%emt 0:00:00]} 2. Nc3 {[%emt 0:00:00]} d6 {[%emt 0:00:00]} 3. g3 {[%emt 0:00:01]} Nc6 {[%emt 0:00:00]} 4. Bg2 {[%emt 0:00:06]} g6 {[%emt 0:00:00]} 5. d3 {[%emt 0:00:06]} Bg7 {[%emt 0:00:01]} 6. f4 {[%emt 0:00:18]} Nf6 {[%emt 0:00:08]} 7. Nf3 {[%emt 0:00:08]} O-O {[%emt 0:00:05]} 8. O-O {[%emt 0:00:06]} Rb8 {[%emt 0:00:02]} 9. h3 {[%emt 0:00:21]} b5 {[%emt 0:00:06]} 10. a3 {[%emt 0:00:04]} a5 {[%emt 0:00:03]} 11. g4 {[%emt 0:00:20]} b4 {[%emt 0:00:08]} 12. axb4 {[%emt 0:00:05]} axb4 {[%emt 0:00:02]} 13. Ne2 {[%emt 0:00:08]} Bb7 {B25: Closed Sicilian: 3 g3, lines without early Be3} 14. Be3 {[%emt 0:02:39]} Nd7 {[%emt 0:08:13]} 15. Rb1 {[%emt 0:00:08]} Ra8 {[%emt 0:00:39]} 16. b3 {[%emt 0:02:31]} Ra2 {[%emt 0:05:11]} 17. f5 $146 {[%emt 0:00:34]} ({Predecessor:} 17. Nc1 Ra6 18. Qe1 e6 {0-1 (49) Chernov,V (2405)-Fedorov,A (2595) Kishinev 1998}) 17... Nde5 {[%emt 0:01:29]} 18. Nxe5 {[%emt 0:06:11]} Bxe5 {[%emt 0:00:26]} 19. Bh6 {[%emt 0:03:19]} Re8 {[%emt 0:16:45]} 20. h4 {[%emt 0:09:07]} e6 {[%emt 0:21:31]} 21. fxe6 {[%emt 0:09:13]} fxe6 {[%emt 0:00:15]} 22. Bg5 {[%emt 0:00:14]} Qd7 {[%emt 0:05:46]} 23. Qd2 {[%emt 0:03:14]} Bg7 {[%emt 0:01:26]} 24. Bf6 {[%emt 0:03:42]} Ne5 {[%emt 0:03:01]} 25. g5 {[%emt 0:04:06]} d5 {[%emt 0:00:51]} 26. Bxg7 {[%emt 0:09:42]} Qxg7 {[%emt 0:00:03]} 27. d4 {[%emt 0:03:37]} cxd4 {[%emt 0:05:40]} 28. Nxd4 {[%emt 0:01:05]} dxe4 {[%emt 0:11:19]} 29. Qxb4 {[%emt 0:08:59]} Ng4 {[%emt 0:00:14]} (29... Bd5 $15 30. Qc5 Raa8) 30. Rf4 {[%emt 0:04:43]} Ne3 $11 {[%emt 0:01:13]} 31. Qb5 {[%emt 0:16:19]} Raa8 {[%emt 0:02:59]} 32. Rf6 {[%emt 0:00:44]} Qc7 {[%emt 0:01:08]} 33. Qe2 {[%emt 0:04:27]} Nd5 {[%emt 0:01:56]} 34. Qxe4 {[%emt 0:03:12]} Nxf6 {[%emt 0:00:34]} 35. Qxb7 {[%emt 0:00:02]} Qc5 {[%emt 0:02:53]} 36. c3 {[%emt 0:00:05]} Qxc3 {[%emt 0:00:20]} 37. Nb5 {[%emt 0:03:33]} Qe3+ {[%emt 0:00:07]} 38. Kh1 {[%emt 0:00:05]} Ng4 {[%emt 0:01:04]} 39. Qf3 {[%emt 0:01:05]} Ra1 {[%emt 0:07:04]} 40. Qxe3 {[%emt 0:00:00]} Rxb1+ {[%emt 0:00:00]} 41. Qg1 {[%emt 0:03:32]} Rxg1+ {[%emt 0:00:06]} 42. Kxg1 {[%emt 0:00:04]} Rb8 {[%emt 0:00:52]} 43. Bc6 {[%emt 0:00:49]} Ne5 {[%emt 0:00:09]} 44. Nd4 {[%emt 0:00:27]} Rb4 {[%emt 0:00:16]} 0-1

[Event "WYCC 2018 O18"]
[Site "Halkidiki"]
[Date "2018.10.23"]
[Round "5"]
[White "Goncalves, Davi Sulzbacher"]
[Black "Roshka, Yevgeniy"]
[Result "1-0"]
[ECO "A41"]
[WhiteElo "2177"]
[BlackElo "2328"]
[Annotator "NA"]
[PlyCount "109"]
[EventDate "2018.10.20"]
[EventType "swiss"]
[EventCountry "GRE"]
[SourceTitle "playchess.com"]
[Source "ChessBase"]
[SourceQuality "1"]
[TimeControl "40/5400+30:1800+30"]

1. d4 {[%emt 0:00:00]} d6 {[%emt 0:00:00]} 2. Nf3 {[%emt 0:00:28]} g6 {[%emt 0:00:00]} 3. c4 {[%emt 0:00:49]} Bg7 {[%emt 0:00:00]} 4. Nc3 {[%emt 0:00:13]} Nd7 {[%emt 0:01:20]} 5. g3 {[%emt 0:02:35]} e5 {[%emt 0:00:04]} 6. Bg2 {[%emt 0:03:01]} Ne7 {[%emt 0:00:06]} 7. O-O {[%emt 0:00:51]} O-O {[%emt 0:00:07]} 8. e4 {[%emt 0:00:45]} exd4 {[%emt 0:00:04]} 9. Nxd4 {[%emt 0:00:19]} Nc6 {[%emt 0:00:02]} 10. Nde2 {[%emt 0:07:26]} Nc5 {[%emt 0:00:31] LiveBook: 54 Games} 11. Be3 {[%emt 0:02:16] A42: Modern Defence: Averbakh Variation} f5 {[%emt 0:04:15]} 12. Nf4 $146 {[%emt 0:15:26]} ({Predecessor:} 12. exf5 Bxf5 13. Nd4 Nxd4 14. Bxd4 a5 15. Nd5 Qd7 16. Re1 Rae8 17. Qd2 Ne4 18. Bxe4 Bxe4 19. Bxg7 Qxg7 {½-½ (49) Svidler,P (2753)-Guseinov,G (2613) Dubai 2014}) 12... Kh8 {[%emt 0:03:31]} 13. Bxc5 {[%emt 0:13:48]} dxc5 {[%emt 0:00:07]} 14. Qxd8 {[%emt 0:00:16]} Nxd8 {[%emt 0:04:54]} 15. Nd3 {[%emt 0:05:24]} Be6 {[%emt 0:08:37]} 16. Nd5 {[%emt 0:04:16]} fxe4 {[%emt 0:13:24]} 17. Nxc5 {[%emt 0:03:40]} Bxd5 {[%emt 0:00:31]} 18. cxd5 {[%emt 0:00:10]} Bxb2 {[%emt 0:02:43]} 19. Rad1 {[%emt 0:01:23]} Ba3 {[%emt 0:00:33]} 20. Nxe4 {[%emt 0:01:52]} Nf7 {[%emt 0:03:57]} 21. f4 {[%emt 0:06:11]} Rfe8 {[%emt 0:09:43]} 22. Rd3 {[%emt 0:01:47]} Bd6 {[%emt 0:02:23]} 23. h4 {[%emt 0:03:02]} Re7 {[%emt 0:01:12]} 24. Bf3 {[%emt 0:04:40]} Kg7 {[%emt 0:01:55]} 25. Rc1 {[%emt 0:06:46]} Rae8 {[%emt 0:01:39]} 26. Rd4 {[%emt 0:00:48]} Nh6 {[%emt 0:01:43]} 27. Nxd6 {[%emt 0:01:36]} cxd6 {[%emt 0:00:01]} 28. g4 {[%emt 0:00:35]} Re1+ {[%emt 0:00:39]} 29. Rxe1 {[%emt 0:00:09]} Rxe1+ {[%emt 0:00:01]} 30. Kf2 {[%emt 0:00:13]} Ra1 {[%emt 0:04:44]} 31. Rd2 {[%emt 0:00:13]} b5 {[%emt 0:01:26]} 32. Rb2 {[%emt 0:03:20]} a5 {[%emt 0:01:47]} 33. Rxb5 {[%emt 0:01:05]} Rxa2+ {[%emt 0:00:02]} 34. Kg3 {[%emt 0:00:20]} a4 {[%emt 0:00:54]} 35. Rb7+ {[%emt 0:00:22]} Kg8 {[%emt 0:04:32]} 36. Rd7 {[%emt 0:00:19]} Nf7 {[%emt 0:00:14]} 37. g5 {[%emt 0:04:15]} a3 {[%emt 0:00:57]} 38. Bg4 {[%emt 0:02:37]} Ra1 {[%emt 0:00:04]} 39. Ra7 {[%emt 0:00:32]} a2 {[%emt 0:01:07]} 40. Kg2 {[%emt 0:00:00]} Nd8 {[%emt 0:00:00]} 41. h5 {[%emt 0:09:07]} gxh5 {[%emt 0:04:20]} 42. Bxh5 {[%emt 0:00:30]} h6 {[%emt 0:03:20]} 43. g6 {[%emt 0:01:19]} Nb7 {[%emt 0:00:46]} 44. f5 {[%emt 0:01:54]} Rc1 {[%emt 0:00:33]} 45. Rxa2 {[%emt 0:00:08]} Kg7 {[%emt 0:00:04]} 46. Re2 {[%emt 0:00:41]} Nd8 {[%emt 0:10:09]} 47. Re7+ {[%emt 0:01:23]} Kf6 {[%emt 0:00:05] [#]} 48. g7 $18 {[%emt 0:00:18]} Rc2+ {[%emt 0:00:03]} 49. Kf1 {[%emt 0:00:10]} Rc1+ {[%emt 0:00:05]} 50. Kf2 {[%emt 0:00:08]} Rc2+ {[%emt 0:00:04]} 51. Be2 {[%emt 0:00:13]} Kxe7 {[%emt 0:01:35]} 52. g8=Q {[%emt 0:00:11]} Nf7 {[%emt 0:00:02]} 53. Qg6 {[%emt 0:00:39]} Ne5 {[%emt 0:01:13]} 54. f6+ {[%emt 0:00:10]} Kd7 {[%emt 0:00:26]} 55. Qxc2 {[%emt 0:00:09]} 1-0

[Event "WYCC 2018 O18"]
[Site "Halkidiki"]
[Date "2018.10.23"]
[Round "5"]
[White "Rovira Vila, Jaume"]
[Black "Alexakis, Dimitris"]
[Result "0-1"]
[ECO "B23"]
[WhiteElo "2156"]
[BlackElo "2186"]
[Annotator "NA"]
[PlyCount "108"]
[EventDate "2018.10.20"]
[EventType "swiss"]
[EventCountry "GRE"]
[SourceTitle "playchess.com"]
[Source "ChessBase"]
[SourceQuality "1"]
[TimeControl "40/5400+30:1800+30"]

1. e4 {[%emt 0:00:00]} c5 {[%emt 0:06:10]} 2. Nc3 {[%emt 0:00:00]} a6 {[%emt 0:00:33]} 3. g3 {[%emt 0:00:00]} b5 {[%emt 0:00:04]} 4. Bg2 {[%emt 0:00:00]} Bb7 {[%emt 0:00:04]} 5. d3 {[%emt 0:00:03]} e6 {[%emt 0:00:11]} 6. Nh3 {[%emt 0:00:10]} Nc6 {[%emt 0:05:12]} 7. O-O {[%emt 0:00:21]} d6 {[%emt 0:01:33]} 8. f4 {[%emt 0:00:46]} Nf6 {[%emt 0:00:25]} 9. Be3 {[%emt 0:01:28]} Qc7 {[%emt 0:00:25]} 10. Nf2 {[%emt 0:07:41]} O-O-O {[%emt 0:01:16]} 11. Ng4 {[%emt 0:21:07]} Nd7 {[%emt 0:04:36]} 12. a4 {[%emt 0:04:52]} b4 {[%emt 0:05:02]} 13. Ne2 {[%emt 0:00:47]} f5 {[%emt 0:53:24]} 14. Nf2 $11 {[%emt 0:06:00]} Nf6 {[%emt 0:00:30]} 15. c3 {[%emt 0:18:46]} Kb8 {[%emt 0:03:17]} 16. d4 {[%emt 0:08:11]} fxe4 {[%emt 0:13:05]} 17. Nxe4 {[%emt 0:01:15]} Nxe4 {[%emt 0:00:49]} 18. Bxe4 {[%emt 0:01:00]} d5 {[%emt 0:01:44]} 19. Bg2 {[%emt 0:01:06]} c4 {[%emt 0:00:07]} 20. cxb4 {[%emt 0:04:54]} Bxb4 {[%emt 0:00:31]} 21. Qc2 {[%emt 0:02:51]} g5 {[%emt 0:00:54]} 22. b3 {[%emt 0:05:34]} Na5 {[%emt 0:00:26]} 23. bxc4 {[%emt 0:00:53]} Nxc4 {[%emt 0:00:08]} 24. Bf2 {[%emt 0:03:23]} Rhe8 {[%emt 0:00:57]} 25. Rfc1 {[%emt 0:02:27]} Ka8 {[%emt 0:00:27]} 26. fxg5 {[%emt 0:04:25]} e5 {[%emt 0:00:30]} 27. dxe5 {[%emt 0:00:46]} Qxe5 {[%emt 0:00:05]} 28. Nf4 {[%emt 0:01:11]} Bd2 {[%emt 0:00:56]} 29. Rcb1 {[%emt 0:00:26]} Bxf4 {[%emt 0:00:35]} 30. gxf4 {[%emt 0:00:37]} Qxf4 {[%emt 0:00:20]} 31. Qxh7 {[%emt 0:00:11]} Rb8 {[%emt 0:00:42]} 32. Re1 {[%emt 0:01:34]} Rh8 {[%emt 0:00:21]} 33. Qd3 {[%emt 0:00:42]} Qxh2+ {[%emt 0:00:35]} 34. Kf1 {[%emt 0:00:05]} Rhf8 {[%emt 0:00:32]} 35. Qd4 {[%emt 0:00:16]} Rxf2+ {[%emt 0:00:22]} 36. Qxf2 {[%emt 0:00:30]} Nd2+ {[%emt 0:00:37]} 37. Ke2 {[%emt 0:01:01]} Ne4 {[%emt 0:00:30]} 38. Bxe4 {[%emt 0:01:03]} Qe5 {[%emt 0:00:07]} 39. Rab1 {[%emt 0:00:40]} dxe4 {[%emt 0:00:38]} 40. g6 {[%emt 0:00:00]} Qh5+ {[%emt 0:00:00]} 41. Kd2 {[%emt 0:13:06]} Qd5+ {[%emt 0:01:32]} 42. Kc1 {[%emt 0:02:08]} Qc6+ {[%emt 0:30:10]} 43. Qc2 {[%emt 0:04:10]} Qxg6 {[%emt 0:00:26]} 44. Rb4 {[%emt 0:05:39]} Rc8 {[%emt 0:00:39]} 45. Rc4 {[%emt 0:00:11]} Qh6+ {[%emt 0:00:26]} 46. Kb1 {[%emt 0:00:36]} Qb6+ {[%emt 0:00:21]} 47. Kc1 {[%emt 0:01:25]} Qh6+ {[%emt 0:00:39]} 48. Kb2 {[%emt 0:01:02]} Rxc4 {[%emt 0:00:17]} 49. Qxc4 {[%emt 0:00:47]} Qd2+ {[%emt 0:00:14]} 50. Kb3 {[%emt 0:00:13]} Qxe1 {[%emt 0:00:40]} 51. Qc7 {[%emt 0:00:57]} Qe3+ {[%emt 0:00:14]} 52. Kb4 {[%emt 0:00:05]} Qd4+ {[%emt 0:00:23]} 53. Ka5 {[%emt 0:01:54]} Qd2+ {[%emt 0:00:05]} 54. Kb6 {[%emt 0:00:06]} Qb4# {[%emt 0:00:08]} 0-1

[Event "WYCC 2018 O18"]
[Site "Halkidiki"]
[Date "2018.10.23"]
[Round "5"]
[White "Veleshnja, Zino"]
[Black "Krstic, Milos"]
[Result "1-0"]
[ECO "A45"]
[WhiteElo "2155"]
[BlackElo "2171"]
[Annotator "NA"]
[PlyCount "100"]
[EventDate "2018.10.20"]
[EventType "swiss"]
[EventCountry "GRE"]
[SourceTitle "playchess.com"]
[Source "ChessBase"]
[SourceQuality "1"]
[TimeControl "40/5400+30:1800+30"]

1. d4 {[%emt 0:00:00]} Nf6 {[%emt 0:00:00]} 2. Bf4 {[%emt 0:00:00]} e6 {[%emt 0:00:00]} 3. e3 {[%emt 0:00:00]} d5 {[%emt 0:00:01]} 4. c3 {[%emt 0:00:06]} Bd6 {[%emt 0:01:24]} 5. Bg3 {[%emt 0:00:06]} O-O {[%emt 0:01:15]} 6. Bd3 {[%emt 0:00:13]} c5 {[%emt 0:01:23]} 7. Nf3 {[%emt 0:00:12]} Nc6 {[%emt 0:01:13]} 8. Nbd2 {[%emt 0:00:07]} b6 {[%emt 0:01:33]} 9. Ne5 {[%emt 0:00:02]} Bb7 {[%emt 0:01:44]} 10. O-O {[%emt 0:00:03]} Qc7 {[%emt 0:01:29]} 11. f4 {[%emt 0:00:22]} Ne7 {[%emt 0:01:46] D02: 1 d4 d5 2 Nf3 sidelines, including 2...Nf6 3 g3 and 2...Nf6 3 Bf4} 12. Qb1 {[%emt 0:00:25]} c4 $146 {[%emt 0:22:23]} ({Predecessor:} 12... Qc8 13. Bh4 Nf5 14. Bxf5 exf5 15. Bxf6 gxf6 16. Nef3 Qe6 17. Re1 Ba6 18. Nh4 cxd4 19. exd4 {1-0 (28) Korobov,A (2692)-Dominguez Perez,L (2739) Doha 2016}) 13. Bc2 {[%emt 0:00:11]} Nf5 {[%emt 0:09:15]} 14. Bf2 {[%emt 0:04:41]} Be7 {[%emt 0:04:25]} 15. Bxf5 {[%emt 0:22:14]} exf5 {[%emt 0:00:07]} 16. Qxf5 {[%emt 0:04:58]} Ne4 {[%emt 0:00:57]} 17. Nxe4 {[%emt 0:00:29]} Bc8 {[%emt 0:00:12]} 18. Qh5 {[%emt 0:01:27]} dxe4 {[%emt 0:00:06]} 19. Bh4 {[%emt 0:02:36]} g6 {[%emt 0:07:17]} 20. Qh6 {[%emt 0:01:12]} f6 {[%emt 0:04:07]} 21. Nxg6 {[%emt 0:00:28]} hxg6 $16 {[%emt 0:00:06]} 22. Qxg6+ {[%emt 0:00:07]} Kh8 {[%emt 0:00:04]} 23. f5 {[%emt 0:03:06]} Bd8 {[%emt 0:05:18]} 24. Qh6+ {[%emt 0:02:19]} Kg8 {[%emt 0:00:09]} 25. Rf4 {[%emt 0:02:01]} Rf7 {[%emt 0:00:40]} 26. Rxe4 {[%emt 0:00:51]} Qd7 {[%emt 0:02:11]} 27. Rf1 {[%emt 0:05:31]} Bb7 {[%emt 0:05:59]} 28. Re6 {[%emt 0:03:25]} Bd5 {[%emt 0:06:02]} 29. Bxf6 {[%emt 0:01:56]} Bxf6 {[%emt 0:02:11]} 30. Rxf6 {[%emt 0:00:18]} Rxf6 {[%emt 0:03:40]} 31. Qxf6 {[%emt 0:00:08]} Qg7 {[%emt 0:02:46]} 32. Qxg7+ {[%emt 0:00:11]} Kxg7 {[%emt 0:00:01]} 33. g4 {[%emt 0:02:20]} Re8 {[%emt 0:02:08]} 34. Kf2 {[%emt 0:00:15]} Rh8 {[%emt 0:00:39]} 35. Kg3 {[%emt 0:01:06]} Re8 {[%emt 0:01:06]} 36. Re1 {[%emt 0:05:32]} Re4 {[%emt 0:00:05]} 37. g5 {[%emt 0:04:19]} a5 {[%emt 0:00:32]} 38. h4 {[%emt 0:01:12]} b5 39. a3 Bf7 {[%emt 0:01:46]} 40. Kf3 {[%emt 0:00:00]} Bd5 {[%emt 0:00:00]} 41. h5 Rxd4+ {[%emt 0:03:57]} 42. e4 {[%emt 0:06:23]} Rd3+ 43. Kf4 {[%emt 0:01:12]} Bc6 {[%emt 0:01:35]} 44. h6+ {[%emt 0:00:28]} Kh7 {[%emt 0:00:11]} 45. Rh1 Rd2 46. g6+ {[%emt 0:01:13]} Kh8 {[%emt 0:01:18]} 47. g7+ {[%emt 0:01:03]} Kh7 {[%emt 0:00:04]} 48. Rg1 {[%emt 0:00:14]} Rd8 {[%emt 0:00:16]} 49. f6 {[%emt 0:00:12]} Re8 {[%emt 0:00:02]} 50. f7 {[%emt 0:00:28]} Rxe4+ {[%emt 0:00:02] Kxe4} 1-0

[Event "WYCC 2018 O18"]
[Site "Halkidiki"]
[Date "2018.10.23"]
[Round "5"]
[White "Giesinger, Elias"]
[Black "Stijve, Theo"]
[Result "1-0"]
[ECO "E06"]
[WhiteElo "2131"]
[BlackElo "2345"]
[Annotator "NA"]
[PlyCount "71"]
[EventDate "2018.10.20"]
[EventType "swiss"]
[EventCountry "GRE"]
[SourceTitle "playchess.com"]
[Source "ChessBase"]
[SourceQuality "1"]
[TimeControl "40/5400+30:1800+30"]

1. d4 {[%emt 0:00:00]} Nf6 {[%emt 0:00:12]} 2. Nf3 {[%emt 0:00:00]} d5 {[%emt 0:00:12]} 3. c4 {[%emt 0:00:37]} e6 {[%emt 0:00:07]} 4. g3 {[%emt 0:00:04]} Be7 {[%emt 0:00:08]} 5. Bg2 {[%emt 0:00:06]} O-O {[%emt 0:00:06]} 6. O-O {[%emt 0:00:05]} dxc4 {[%emt 0:00:06]} 7. Qc2 {[%emt 0:00:44]} b6 {[%emt 0:00:06] E05: Open Catalan: 5 Nf3 Be7} (7... a6 8. a4 Bd7 9. Qxc4 Bc6 10. Bf4 Nbd7 11. Qc2 Bd6 12. Bg5 h6 13. Bxf6 Nxf6 14. Nbd2 Bb4 15. e3 a5 16. Rfd1 Rc8 17. Rac1 Bxf3 18. Bxf3 c6 {½-½ (42) Ding,L (2804)-Giri,A (2780) Batumi 2018}) 8. Nfd2 {[%emt 0:01:10]} Nd5 {[%emt 0:08:36]} 9. Nxc4 {[%emt 0:01:42]} Bb7 {[%emt 0:01:49]} 10. a3 {[%emt 0:01:20]} c5 {[%emt 0:09:12]} 11. dxc5 {[%emt 0:10:17]} Bxc5 {[%emt 0:10:22]} 12. b4 {[%emt 0:12:33]} Bd4 $146 {[%emt 0:05:04]} ({Predecessor:} 12... Be7 13. Bb2 Nd7 14. Nbd2 Rc8 15. Qb3 {½-½ (34) Kauppila,O (2318)-Pihlajasalo,A (2442) Finland 2015}) 13. Bb2 {[%emt 0:01:02]} Bxb2 {[%emt 0:03:27]} 14. Qxb2 {[%emt 0:02:30]} Qe7 {[%emt 0:02:40]} 15. Nbd2 {[%emt 0:10:52]} Rd8 {[%emt 0:09:13]} 16. Rfd1 {[%emt 0:02:41]} Nd7 {[%emt 0:02:54]} 17. e4 {[%emt 0:05:31]} Nc7 {[%emt 0:04:00]} 18. Rac1 {[%emt 0:01:09]} Nf8 {[%emt 0:08:05]} 19. Ne5 {[%emt 0:13:54]} Qd6 {[%emt 0:07:30]} 20. Nxf7 {[%emt 0:06:21]} Kxf7 {[%emt 0:06:47]} 21. e5 {[%emt 0:00:31]} Qe7 {[%emt 0:02:22]} 22. Bxb7 {[%emt 0:00:09]} Rab8 {[%emt 0:00:11]} 23. Bg2 {[%emt 0:03:47]} Nd5 {[%emt 0:00:57]} 24. Ne4 {[%emt 0:00:29]} Ng6 {[%emt 0:02:20]} 25. Nd6+ $18 {[%emt 0:02:30]} Kg8 {[%emt 0:00:32]} 26. Bxd5 {[%emt 0:06:11]} exd5 {[%emt 0:00:07]} 27. Rxd5 {[%emt 0:00:34]} Nxe5 {[%emt 0:04:05]} 28. Nf5 {[%emt 0:09:26]} Nf3+ {[%emt 0:05:23]} 29. Kg2 {[%emt 0:01:33]} Qb7 {[%emt 0:05:18]} 30. Rxd8+ {[%emt 0:01:14]} Rxd8 {[%emt 0:00:06]} 31. Qb3+ {[%emt 0:00:23]} Qf7 {[%emt 0:02:27]} 32. Qxf7+ {[%emt 0:01:35]} Kxf7 {[%emt 0:00:02]} 33. Kxf3 {[%emt 0:00:08]} Rd3+ {[%emt 0:00:05]} 34. Kg2 {[%emt 0:00:29]} Rxa3 {[%emt 0:00:05]} 35. Rc7+ {[%emt 0:00:05]} Kf6 {[%emt 0:00:06]} 36. Nxg7 {[%emt 0:00:33]} 1-0

[Event "WYCC 2018 O18"]
[Site "Halkidiki"]
[Date "2018.10.23"]
[Round "5"]
[White "Rengifo Blancas, Renzo Jhonathan"]
[Black "Szustakowski, Antoni"]
[Result "1-0"]
[ECO "E04"]
[WhiteElo "2123"]
[BlackElo "2319"]
[Annotator "NA"]
[PlyCount "109"]
[EventDate "2018.10.20"]
[EventType "swiss"]
[EventCountry "GRE"]
[SourceTitle "playchess.com"]
[Source "ChessBase"]
[SourceQuality "1"]
[TimeControl "40/5400+30:1800+30"]

1. d4 {[%emt 0:00:00] Platz,H} Nf6 {[%emt 0:00:00]} 2. c4 {[%emt 0:00:13]} e6 {[%emt 0:00:00]} 3. Nf3 {[%emt 0:00:05]} d5 {[%emt 0:00:00]} 4. g3 {[%emt 0:00:13]} dxc4 {[%emt 0:00:19]} 5. Bg2 {[%emt 0:00:46]} a6 {[%emt 0:00:10]} 6. Ne5 {[%emt 0:01:07]} c5 {[%emt 0:03:49]} 7. Na3 {[%emt 0:00:44]} cxd4 {[%emt 0:06:54] E04: Open Catalan: 5 Nf3} 8. Naxc4 {[%emt 0:00:36]} Bc5 {[%emt 0:08:03] LiveBook: 38 Games} 9. O-O {[%emt 0:00:54]} O-O {[%emt 0:00:11]} 10. Bd2 {[%emt 0:05:35]} (10. Bg5 h6 11. Bxf6 Qxf6 12. Qb3 Nd7 13. Nxd7 Bxd7 14. Qxb7 Bb5 15. Rac1 {½-½ (32) Postny,E (2585)-Mastrovasilis,D (2580) Rio Achaea 2018}) 10... Nbd7 {[%emt 0:13:53]} 11. Nd3 $146 {[%emt 0:07:51]} ({Predecessor:} 11. Rc1 Qe7 12. Nd3 Ra7 13. Nxc5 Nxc5 14. Nb6 Nfd7 15. Bb4 Nxb6 16. Bxc5 Qd8 17. Qxd4 Qxd4 18. Bxd4 {1-0 (18) Platz,H-Zenker,L Binz 1952 EXT 2005 [Platz,H]}) 11... Be7 {[%emt 0:02:21]} 12. Ba5 {[%emt 0:03:03]} Qe8 {[%emt 0:00:12]} 13. Rc1 {[%emt 0:00:55]} Nd5 {[%emt 0:08:31]} 14. Nf4 {[%emt 0:12:38]} b5 {[%emt 0:12:14]} 15. Nxd5 {[%emt 0:13:21]} exd5 {[%emt 0:00:23]} 16. Nb6 {[%emt 0:03:39]} Nxb6 {[%emt 0:00:15]} 17. Bxb6 {[%emt 0:00:04]} Be6 {[%emt 0:01:45]} 18. Qxd4 {[%emt 0:02:50]} Bf6 {[%emt 0:03:45]} 19. Qb4 {[%emt 0:04:41]} Qb8 {[%emt 0:01:49]} 20. Bd4 {[%emt 0:01:43]} Bxd4 {[%emt 0:02:08]} 21. Qxd4 {[%emt 0:02:10]} Rd8 {[%emt 0:06:01]} 22. Rfd1 {[%emt 0:00:05]} Ra7 {[%emt 0:01:48]} 23. Rc6 {[%emt 0:07:17]} Qa8 {[%emt 0:06:47]} 24. Qb6 {[%emt 0:09:02]} h6 {[%emt 0:02:03]} 25. e4 {[%emt 0:05:58]} Rad7 {[%emt 0:02:16]} 26. exd5 {[%emt 0:05:20]} Bxd5 {[%emt 0:00:09]} 27. Bxd5 {[%emt 0:01:08]} Rxd5 {[%emt 0:00:06]} 28. Rxd5 {[%emt 0:00:22]} Rxd5 {[%emt 0:00:05]} 29. Qxa6 {[%emt 0:00:20]} Qxa6 {[%emt 0:00:21]} 30. Rxa6 {[%emt 0:00:03]} Rd2 {[%emt 0:01:00]} 31. b4 {[%emt 0:02:11]} f6 {[%emt 0:01:09]} 32. Ra5 {[%emt 0:01:18]} Kf7 {[%emt 0:03:06]} 33. Rxb5 {[%emt 0:01:59]} Rxa2 {[%emt 0:00:04]} 34. Rb7+ {[%emt 0:00:11]} Kg6 {[%emt 0:00:16]} 35. h4 {[%emt 0:00:13]} h5 {[%emt 0:00:37]} 36. Kg2 {[%emt 0:00:31]} Ra3 {[%emt 0:01:03]} 37. b5 {[%emt 0:00:20]} Rb3 {[%emt 0:00:41]} 38. Kf1 {[%emt 0:01:53]} Rb2 {[%emt 0:02:07]} 39. Kg2 {[%emt 0:00:05]} Rb3 {[%emt 0:00:04]} 40. b6 {[%emt 0:00:00]} Kf5 {[%emt 0:00:00]} 41. Rb8 {[%emt 0:13:44]} Kg4 {[%emt 0:06:01] [#]} 42. Rb7 $11 {[%emt 0:02:07]} (42. Rg8 $1 $16 {[%cal Rg8g7]} Rxb6 43. Rxg7+ Kf5 44. Rh7) 42... Kf5 {[%emt 0:01:47]} 43. Kf1 {[%emt 0:02:55]} Rb2 {[%emt 0:00:06]} 44. Ke1 {[%emt 0:02:41]} Kg6 {[%emt 0:02:34]} 45. Kd1 {[%emt 0:02:33]} Rxf2 {[%emt 0:01:41]} 46. Rc7 {[%emt 0:05:08]} Rb2 {[%emt 0:00:40]} 47. b7 {[%emt 0:00:03]} f5 {[%emt 0:18:49]} 48. Kc1 {[%emt 0:00:04]} Rb5 {[%emt 0:00:04]} 49. Kd2 {[%emt 0:00:44]} Kf6 {[%emt 0:01:47]} 50. Kc3 {[%emt 0:02:07]} Rb1 {[%emt 0:00:07]} 51. Kd4 {[%emt 0:00:37]} g6 {[%emt 0:01:54]} 52. Kc5 {[%emt 0:04:53]} Ke5 {[%emt 0:00:28]} 53. Re7+ {[%emt 0:00:45]} Kf6 {[%emt 0:00:05]} 54. Rd7 {[%emt 0:00:08]} Ke5 {[%emt 0:00:04]} 55. Rd5+ {[%emt 0:00:30]} 1-0